[Event "Late-Titled-Tuesday-Blitz-July-09-2024"]
[Site "Chess.com"]
[Date "2024.07.09"]
[Round "2"]
[White "Romadk"]
[Black "APOKALIPSA13"]
[Result "1-0"]
[WhiteElo "2458"]
[BlackElo "2113"]
[TimeControl "180+1"]
[EndTime "14:18:04 PDT"]
[Termination "Romadk won by resignation"]

1. d4 {[%clk 0:03:00.9]} 1... e5 {[%clk 0:03:00.9]} 2. dxe5 {[%clk 0:03:00.7]}
2... Nc6 {[%clk 0:02:59.2]} 3. Nf3 {[%clk 0:02:58.7]} 3... Qe7 {[%clk
0:02:58.8]} 4. Nc3 {[%clk 0:02:55.1]} 4... Nxe5 {[%clk 0:02:58.6]} 5. Bf4 {[%clk
0:02:53.4]} 5... Nxf3+ {[%clk 0:02:54.4]} 6. gxf3 {[%clk 0:02:54.3]} 6... c6
{[%clk 0:02:48.8]} 7. Qd2 {[%clk 0:02:47.8]} 7... d5 {[%clk 0:02:47.9]} 8. O-O-O
{[%clk 0:02:47.4]} 8... Be6 {[%clk 0:02:39.3]} 9. e4 {[%clk 0:02:47]} 9... O-O-O
{[%clk 0:02:39.2]} 10. Qd4 {[%clk 0:02:44]} 10... dxe4 {[%clk 0:02:25.1]} 11.
Qxa7 {[%clk 0:02:42.9]} 11... Rxd1+ {[%clk 0:02:24.6]} 12. Nxd1 {[%clk
0:02:43.8]} 12... Qb4 {[%clk 0:01:49.2]} 13. Qb8+ {[%clk 0:02:40.1]} 13... Kd7
{[%clk 0:01:49]} 14. Qc7+ {[%clk 0:02:39.3]} 14... Ke8 {[%clk 0:01:47.6]} 15.
Bg2 {[%clk 0:02:07.3]} 15... Nf6 {[%clk 0:01:16.4]} 16. Nc3 {[%clk 0:02:06]}
16... Be7 {[%clk 0:00:58.1]} 17. Qb8+ {[%clk 0:01:54.6]} 17... Bd8 {[%clk
0:00:54.6]} 18. Rd1 {[%clk 0:01:52.5]} 18... Nd5 {[%clk 0:00:43]} 19. fxe4
{[%clk 0:01:45.8]} 19... g5 {[%clk 0:00:13]} 20. Bxg5 {[%clk 0:01:35.3]} 20...
f6 {[%clk 0:00:12.7]} 21. exd5 {[%clk 0:01:29.9]} 21... fxg5 {[%clk 0:00:11.8]}
22. dxe6 {[%clk 0:01:30.8]} 22... Ke7 {[%clk 0:00:10.4]} 23. Rd7+ {[%clk
0:01:14.1]} 23... Kxe6 {[%clk 0:00:09.4]} 24. Rxd8 {[%clk 0:01:13.6]} 24... Rxd8
{[%clk 0:00:07.7]} 25. Qxd8 {[%clk 0:01:14.5]} 25... Qf4+ {[%clk 0:00:08.1]} 26.
Qd2 {[%clk 0:01:11.9]} 26... Qxh2 {[%clk 0:00:08]} 27. Qe2+ {[%clk 0:01:09.8]}
27... Kf7 {[%clk 0:00:07.5]} 28. Bf3 {[%clk 0:01:07.4]} 28... Qg1+ {[%clk
0:00:05.3]} 29. Nd1 {[%clk 0:01:05.9]} 29... h6 {[%clk 0:00:03.8]} 30. Bh5+
{[%clk 0:01:05.6]} 30... Kf6 {[%clk 0:00:03.3]} 31. Kd2 {[%clk 0:01:04.4]} 31...
Qh2 {[%clk 0:00:02.9]} 32. Ne3 {[%clk 0:01:04.1]} 32... Qd6+ {[%clk 0:00:02.6]}
33. Qd3 {[%clk 0:01:03.2]} 33... Qf4 {[%clk 0:00:02.9]} 34. Qf5+ {[%clk
0:00:57.1]} 34... Qxf5 {[%clk 0:00:02.5]} 35. Nxf5 {[%clk 0:00:58]} 35... Kxf5
{[%clk 0:00:03.4]} 36. a4 {[%clk 0:00:56]} 36... g4 {[%clk 0:00:02.9]} 37. a5
{[%clk 0:00:49.6]} 37... Kg5 {[%clk 0:00:02.9]} 38. Be8 {[%clk 0:00:49.5]} 38...
h5 {[%clk 0:00:03]} 39. Bxc6 {[%clk 0:00:48.5]} 39... bxc6 {[%clk 0:00:01.8]}
40. a6 {[%clk 0:00:49.4]} 40... h4 {[%clk 0:00:02.4]} 41. a7 {[%clk 0:00:49.9]}
41... h3 {[%clk 0:00:03.3]} 42. a8=Q {[%clk 0:00:50.4]} 42... h2 {[%clk
0:00:03.3]} 43. Qh8 {[%clk 0:00:48.7]} 43... Kf4 {[%clk 0:00:02.9]} 44. Qxh2+
{[%clk 0:00:48.4]} 44... Kf3 {[%clk 0:00:03.8]} 45. Qg3+ {[%clk 0:00:48.6]}
45... Ke4 {[%clk 0:00:04.4]} 46. Qe3+ {[%clk 0:00:48.7]} 1-0

[Event "Late-Titled-Tuesday-Blitz-July-09-2024"]
[Site "Chess.com"]
[Date "2024.07.09"]
[Round "2"]
[White "dropstoneDP"]
[Black "Itay121"]
[Result "1-0"]
[WhiteElo "3028"]
[BlackElo "2517"]
[TimeControl "180+1"]
[EndTime "14:18:05 PDT"]
[Termination "dropstoneDP won by checkmate"]

1. e4 {[%clk 0:03:00.9]} 1... c6 {[%clk 0:02:59.5]} 2. Nc3 {[%clk 0:02:57.7]}
2... d5 {[%clk 0:02:59.5]} 3. Nf3 {[%clk 0:02:58.5]} 3... dxe4 {[%clk
0:02:59.1]} 4. Nxe4 {[%clk 0:02:59.4]} 4... Nf6 {[%clk 0:02:59.6]} 5. Qe2 {[%clk
0:02:58.5]} 5... Nxe4 {[%clk 0:02:56.8]} 6. Qxe4 {[%clk 0:02:59.4]} 6... Qa5
{[%clk 0:02:52.5]} 7. b4 {[%clk 0:02:58.5]} 7... Qd5 {[%clk 0:02:51.7]} 8. Qf4
{[%clk 0:02:57.2]} 8... e5 {[%clk 0:02:49.2]} 9. Qxe5+ {[%clk 0:02:55.5]} 9...
Qxe5+ {[%clk 0:02:48.9]} 10. Nxe5 {[%clk 0:02:56.4]} 10... Bxb4 {[%clk
0:02:48.1]} 11. Rb1 {[%clk 0:02:57]} 11... Bd6 {[%clk 0:02:44.7]} 12. Nc4 {[%clk
0:02:56.6]} 12... Bc7 {[%clk 0:02:44.7]} 13. Ba3 {[%clk 0:02:56.7]} 13... b5
{[%clk 0:02:36.5]} 14. Nd6+ {[%clk 0:02:56.3]} 14... Bxd6 {[%clk 0:02:34.3]} 15.
Bxd6 {[%clk 0:02:57.2]} 15... Be6 {[%clk 0:02:25.7]} 16. a4 {[%clk 0:02:55.3]}
16... a6 {[%clk 0:02:20.8]} 17. Bd3 {[%clk 0:02:52.8]} 17... Nd7 {[%clk
0:02:12.7]} 18. O-O {[%clk 0:02:51.5]} 18... Nb6 {[%clk 0:02:11.9]} 19. axb5
{[%clk 0:02:47.5]} 19... axb5 {[%clk 0:02:10.4]} 20. Bc5 {[%clk 0:02:42.3]}
20... Nc4 {[%clk 0:02:05.8]} 21. Bxc4 {[%clk 0:02:28.8]} 21... Bxc4 {[%clk
0:02:04.2]} 22. Rfe1+ {[%clk 0:02:29.1]} 22... Be6 {[%clk 0:02:03.6]} 23. c4
{[%clk 0:02:29.2]} 23... Kd7 {[%clk 0:01:37.2]} 24. cxb5 {[%clk 0:02:28.5]}
24... cxb5 {[%clk 0:01:38.1]} 25. Bd4 {[%clk 0:02:24.5]} 25... Rhb8 {[%clk
0:01:21.2]} 26. Bxg7 {[%clk 0:02:22.3]} 26... b4 {[%clk 0:01:19.9]} 27. h3
{[%clk 0:02:17.7]} 27... b3 {[%clk 0:01:18.9]} 28. Bc3 {[%clk 0:02:17.2]} 28...
Rg8 {[%clk 0:01:12.6]} 29. Rxe6 {[%clk 0:02:14.3]} 29... fxe6 {[%clk 0:01:01.7]}
30. Rxb3 {[%clk 0:02:14.7]} 30... Rgb8 {[%clk 0:01:01.6]} 31. Rxb8 {[%clk
0:01:57]} 31... Rxb8 {[%clk 0:01:02.5]} 32. g4 {[%clk 0:01:54.2]} 32... Kc6
{[%clk 0:00:56.8]} 33. Kg2 {[%clk 0:01:54.2]} 33... Kd5 {[%clk 0:00:57.1]} 34.
Kg3 {[%clk 0:01:48.5]} 34... Rf8 {[%clk 0:00:52.3]} 35. f3 {[%clk 0:01:46.3]}
35... Rf7 {[%clk 0:00:50.6]} 36. Ba5 {[%clk 0:01:43.5]} 36... e5 {[%clk
0:00:46.7]} 37. Bb6 {[%clk 0:01:43.8]} 37... Rb7 {[%clk 0:00:39.1]} 38. Be3
{[%clk 0:01:42.5]} 38... Rf7 {[%clk 0:00:37.6]} 39. h4 {[%clk 0:01:40.6]} 39...
Rg7 {[%clk 0:00:30.9]} 40. h5 {[%clk 0:01:39.4]} 40... Rf7 {[%clk 0:00:30.6]}
41. g5 {[%clk 0:01:38.4]} 41... Ke6 {[%clk 0:00:27]} 42. Kg4 {[%clk 0:01:38.7]}
42... Rb7 {[%clk 0:00:26]} 43. h6 {[%clk 0:01:12.2]} 43... Rb4+ {[%clk
0:00:25.5]} 44. f4 {[%clk 0:01:12.7]} 44... Kd5 {[%clk 0:00:19.4]} 45. g6 {[%clk
0:01:01.6]} 45... hxg6 {[%clk 0:00:17.5]} 46. h7 {[%clk 0:01:02.5]} 46... Rb8
{[%clk 0:00:16.6]} 47. Kg5 {[%clk 0:01:02.9]} 47... exf4 {[%clk 0:00:11.4]} 48.
Bxf4 {[%clk 0:01:03.8]} 48... Rf8 {[%clk 0:00:07]} 49. Kxg6 {[%clk 0:01:02.9]}
49... Ke6 {[%clk 0:00:02.9]} 50. Be3 {[%clk 0:00:58.3]} 50... Re8 {[%clk
0:00:01.9]} 51. Bd4 {[%clk 0:00:56]} 51... Re7 {[%clk 0:00:02.2]} 52. h8=Q
{[%clk 0:00:55.1]} 52... Rd7 {[%clk 0:00:02.8]} 53. Qe5# {[%clk 0:00:54.6]} 1-0

[Event "Late-Titled-Tuesday-Blitz-July-09-2024"]
[Site "Chess.com"]
[Date "2024.07.09"]
[Round "2"]
[White "giomar27"]
[Black "Individoom"]
[Result "0-1"]
[WhiteElo "2427"]
[BlackElo "2759"]
[TimeControl "180+1"]
[EndTime "14:18:07 PDT"]
[Termination "Individoom won on time"]

1. Nc3 {[%clk 0:03:00.9]} 1... d5 {[%clk 0:02:57.6]} 2. d4 {[%clk 0:03:00.7]}
2... Nf6 {[%clk 0:02:54.1]} 3. Bf4 {[%clk 0:03:00.5]} 3... a6 {[%clk 0:02:51.3]}
4. e3 {[%clk 0:03:00.6]} 4... c5 {[%clk 0:02:26.7]} 5. dxc5 {[%clk 0:02:58.6]}
5... Nc6 {[%clk 0:02:26.8]} 6. Nf3 {[%clk 0:02:55.2]} 6... Bg4 {[%clk
0:02:26.6]} 7. Be2 {[%clk 0:02:50.4]} 7... e6 {[%clk 0:02:24.2]} 8. Na4 {[%clk
0:02:41.8]} 8... Bxc5 {[%clk 0:02:16.6]} 9. Nxc5 {[%clk 0:02:39.3]} 9... Qa5+
{[%clk 0:02:16.5]} 10. c3 {[%clk 0:02:37.3]} 10... Qxc5 {[%clk 0:02:16.5]} 11.
Ne5 {[%clk 0:02:32.1]} 11... Bxe2 {[%clk 0:02:13.9]} 12. Qxe2 {[%clk 0:02:33]}
12... O-O {[%clk 0:02:12.4]} 13. O-O {[%clk 0:02:25.6]} 13... Rac8 {[%clk
0:02:11]} 14. Nxc6 {[%clk 0:01:57.9]} 14... Qxc6 {[%clk 0:02:10.2]} 15. Rad1
{[%clk 0:01:28.3]} 15... Rfe8 {[%clk 0:02:09]} 16. Be5 {[%clk 0:01:27.4]} 16...
Nd7 {[%clk 0:02:08.3]} 17. Bg3 {[%clk 0:01:20.6]} 17... b5 {[%clk 0:02:07]} 18.
a3 {[%clk 0:01:18.7]} 18... Nc5 {[%clk 0:01:58.8]} 19. Qg4 {[%clk 0:01:06.7]}
19... f6 {[%clk 0:01:49.5]} 20. Bh4 {[%clk 0:00:59.5]} 20... Kh8 {[%clk
0:01:47.3]} 21. Qf3 {[%clk 0:00:46.5]} 21... Ne4 {[%clk 0:01:43.9]} 22. Qe2
{[%clk 0:00:33.9]} 22... Qc4 {[%clk 0:01:38.7]} 23. Qh5 {[%clk 0:00:23]} 23...
Qc7 {[%clk 0:01:24.4]} 24. Bg3 {[%clk 0:00:21.6]} 24... Qc6 {[%clk 0:01:22.1]}
25. Rd4 {[%clk 0:00:17.9]} 25... e5 {[%clk 0:01:16.9]} 26. Rdd1 {[%clk
0:00:17.5]} 26... Rcd8 {[%clk 0:01:13.7]} 27. Qe2 {[%clk 0:00:17.1]} 27... Rd7
{[%clk 0:01:09.7]} 28. f3 {[%clk 0:00:17.4]} 28... Nc5 {[%clk 0:01:09.6]} 29.
Qc2 {[%clk 0:00:15.6]} 29... Red8 {[%clk 0:01:08.7]} 30. Rd2 {[%clk 0:00:15.6]}
30... Na4 {[%clk 0:01:08]} 31. Rfd1 {[%clk 0:00:14.9]} 31... Nb6 {[%clk
0:01:08.1]} 32. Bf2 {[%clk 0:00:14.4]} 32... Nc4 {[%clk 0:01:07.7]} 33. Re2
{[%clk 0:00:14.3]} 33... a5 {[%clk 0:01:07]} 34. Qf5 {[%clk 0:00:08.4]} 34... a4
{[%clk 0:01:06]} 35. g4 {[%clk 0:00:08]} 35... g6 {[%clk 0:01:03.3]} 36. Qc2
{[%clk 0:00:07.1]} 36... Kg7 {[%clk 0:01:03.3]} 37. h4 {[%clk 0:00:06.5]} 37...
Qe6 {[%clk 0:00:58.1]} 38. Kh2 {[%clk 0:00:06.1]} 38... e4 {[%clk 0:00:58]} 39.
fxe4 {[%clk 0:00:04]} 39... dxe4 {[%clk 0:00:56.5]} 40. Rd4 {[%clk 0:00:03.6]}
40... Rxd4 {[%clk 0:00:54]} 41. exd4 {[%clk 0:00:04.5]} 41... Re8 {[%clk
0:00:54.2]} 42. Kg3 {[%clk 0:00:04.1]} 42... e3 {[%clk 0:00:52.4]} 43. Bg1
{[%clk 0:00:03.5]} 43... Qd6+ {[%clk 0:00:51.9]} 44. Kg2 {[%clk 0:00:03.5]}
44... Qd5+ {[%clk 0:00:51.5]} 45. Kh2 {[%clk 0:00:03.2]} 45... Re4 {[%clk
0:00:50.8]} 46. Kh3 {[%clk 0:00:03]} 46... Qe6 {[%clk 0:00:49.8]} 47. Rg2 {[%clk
0:00:03.1]} 47... e2 {[%clk 0:00:47.9]} 48. Bf2 {[%clk 0:00:01.4]} 48... e1=Q
{[%clk 0:00:44.2]} 49. Bxe1 {[%clk 0:00:01.8]} 49... Ne3 {[%clk 0:00:43.9]} 0-1

[Event "Late-Titled-Tuesday-Blitz-July-09-2024"]
[Site "Chess.com"]
[Date "2024.07.09"]
[Round "2"]
[White "DanLowinger"]
[Black "c63_amg"]
[Result "0-1"]
[WhiteElo "2405"]
[BlackElo "2773"]
[TimeControl "180+1"]
[EndTime "14:18:07 PDT"]
[Termination "c63_amg won by resignation"]

1. e4 {[%clk 0:03:00.9]} 1... c5 {[%clk 0:02:49.2]} 2. Nf3 {[%clk 0:02:59.6]}
2... d6 {[%clk 0:02:49.9]} 3. d4 {[%clk 0:02:59.7]} 3... cxd4 {[%clk 0:02:50.6]}
4. Nxd4 {[%clk 0:03:00.1]} 4... Nf6 {[%clk 0:02:50.7]} 5. Nc3 {[%clk 0:03:00.7]}
5... a6 {[%clk 0:02:51.2]} 6. Bg5 {[%clk 0:02:59.7]} 6... Nbd7 {[%clk
0:02:49.8]} 7. f4 {[%clk 0:02:58.8]} 7... Qa5 {[%clk 0:02:47.5]} 8. Qd2 {[%clk
0:02:47.5]} 8... h6 {[%clk 0:02:47.4]} 9. Bh4 {[%clk 0:02:44.8]} 9... g6 {[%clk
0:02:39.5]} 10. Bc4 {[%clk 0:02:37.4]} 10... Bg7 {[%clk 0:02:39.4]} 11. O-O-O
{[%clk 0:02:14.9]} 11... O-O {[%clk 0:02:31.4]} 12. Rhe1 {[%clk 0:02:13.3]}
12... Qc7 {[%clk 0:02:16.6]} 13. Bb3 {[%clk 0:02:11.7]} 13... e5 {[%clk
0:02:16.7]} 14. Nf3 {[%clk 0:01:47]} 14... exf4 {[%clk 0:02:10.7]} 15. Qxd6
{[%clk 0:01:46.7]} 15... Qxd6 {[%clk 0:02:06.2]} 16. Rxd6 {[%clk 0:01:47.6]}
16... g5 {[%clk 0:02:06.6]} 17. Bf2 {[%clk 0:01:46.9]} 17... Ng4 {[%clk
0:02:04.5]} 18. Bd4 {[%clk 0:01:38.6]} 18... Bxd4 {[%clk 0:01:48.1]} 19. Nxd4
{[%clk 0:01:35.7]} 19... Nde5 {[%clk 0:01:46.2]} 20. Nd5 {[%clk 0:01:21.2]}
20... Nxh2 {[%clk 0:01:17.2]} 21. Ne7+ {[%clk 0:01:16.1]} 21... Kh7 {[%clk
0:01:11.2]} 22. Rh1 {[%clk 0:00:58.3]} 22... Nhg4 {[%clk 0:01:10.7]} 23. Nxc8
{[%clk 0:00:53.4]} 23... Raxc8 {[%clk 0:01:10]} 24. Nf5 {[%clk 0:00:47.4]} 24...
f6 {[%clk 0:00:52.3]} 25. Rb6 {[%clk 0:00:33.7]} 25... Rc7 {[%clk 0:00:49.9]}
26. Bd5 {[%clk 0:00:32.2]} 26... Nd3+ {[%clk 0:00:26.9]} 27. Kb1 {[%clk
0:00:30.9]} 27... Ndf2 {[%clk 0:00:27.8]} 28. Rf1 {[%clk 0:00:26.2]} 28... Re8
{[%clk 0:00:27.7]} 29. Nd6 {[%clk 0:00:18.4]} 29... Re5 {[%clk 0:00:23.6]} 30.
c4 {[%clk 0:00:18.5]} 30... Nd3 {[%clk 0:00:17.4]} 31. b4 {[%clk 0:00:12.9]}
31... Ne3 {[%clk 0:00:17.4]} 32. Rh1 {[%clk 0:00:10.5]} 32... Nxd5 {[%clk
0:00:17.4]} 33. exd5 {[%clk 0:00:07.7]} 33... Re2 {[%clk 0:00:15]} 34. a3 {[%clk
0:00:06.4]} 34... Rb2+ {[%clk 0:00:14.6]} 35. Ka1 {[%clk 0:00:06.2]} 35... Rxg2
{[%clk 0:00:15.5]} 36. Rxb7 {[%clk 0:00:05.9]} 36... Rxb7 {[%clk 0:00:13.6]} 37.
Nxb7 {[%clk 0:00:06.8]} 37... f3 {[%clk 0:00:14.2]} 38. Kb1 {[%clk 0:00:03.2]}
38... f2 {[%clk 0:00:14.1]} 39. Kc2 {[%clk 0:00:04.1]} 39... Rg1 {[%clk
0:00:14.3]} 40. Kxd3 {[%clk 0:00:02.3]} 40... Rxh1 {[%clk 0:00:14.4]} 0-1

[Event "Late-Titled-Tuesday-Blitz-July-09-2024"]
[Site "Chess.com"]
[Date "2024.07.09"]
[Round "2"]
[White "Redzishchess"]
[Black "aexmi"]
[Result "0-1"]
[WhiteElo "2464"]
[BlackElo "2263"]
[TimeControl "180+1"]
[EndTime "14:18:09 PDT"]
[Termination "aexmi won by checkmate"]

1. d4 {[%clk 0:02:57.5]} 1... Nf6 {[%clk 0:02:58]} 2. c4 {[%clk 0:02:57.8]} 2...
e6 {[%clk 0:02:57.2]} 3. Nf3 {[%clk 0:02:57.1]} 3... b6 {[%clk 0:02:55.5]} 4. g3
{[%clk 0:02:54]} 4... Bb7 {[%clk 0:02:55.3]} 5. Bg2 {[%clk 0:02:54.7]} 5... Be7
{[%clk 0:02:51.2]} 6. O-O {[%clk 0:02:55.2]} 6... O-O {[%clk 0:02:50.3]} 7. Re1
{[%clk 0:02:55.6]} 7... d5 {[%clk 0:02:49]} 8. cxd5 {[%clk 0:02:51.6]} 8... exd5
{[%clk 0:02:46.9]} 9. Nc3 {[%clk 0:02:50.2]} 9... Ne4 {[%clk 0:02:46.9]} 10. Bf4
{[%clk 0:02:48.7]} 10... c5 {[%clk 0:02:45.5]} 11. Rc1 {[%clk 0:02:48.2]} 11...
Nd7 {[%clk 0:02:29.4]} 12. dxc5 {[%clk 0:02:36.2]} 12... Bxc5 {[%clk 0:02:12.8]}
13. Nd4 {[%clk 0:02:27]} 13... Ndf6 {[%clk 0:02:07.6]} 14. Na4 {[%clk 0:02:03]}
14... Rc8 {[%clk 0:01:56.6]} 15. Nxc5 {[%clk 0:02:02.5]} 15... bxc5 {[%clk
0:01:54.1]} 16. Nf5 {[%clk 0:02:02.1]} 16... g6 {[%clk 0:01:35]} 17. Ne3 {[%clk
0:01:42.7]} 17... Re8 {[%clk 0:01:21.4]} 18. h4 {[%clk 0:01:14.8]} 18... Nh5
{[%clk 0:01:09.9]} 19. Bh6 {[%clk 0:00:31.6]} 19... Qf6 {[%clk 0:00:51.8]} 20.
Rf1 {[%clk 0:00:23.9]} 20... d4 {[%clk 0:00:50.3]} 21. Nc4 {[%clk 0:00:16.4]}
21... Bd5 {[%clk 0:00:32]} 22. Bg5 {[%clk 0:00:16]} 22... Nxg5 {[%clk
0:00:29.8]} 23. Bxd5 {[%clk 0:00:16.9]} 23... Nh3+ {[%clk 0:00:21.1]} 24. Kh2
{[%clk 0:00:13.5]} 24... Nxf2 {[%clk 0:00:19.4]} 25. Bf3 {[%clk 0:00:14]} 25...
Nxd1 {[%clk 0:00:15.2]} 26. Rcxd1 {[%clk 0:00:13.9]} 26... Qe6 {[%clk
0:00:12.8]} 27. b3 {[%clk 0:00:07.8]} 27... Nf6 {[%clk 0:00:12.1]} 28. Kg2
{[%clk 0:00:03.9]} 28... Ng4 {[%clk 0:00:11.6]} 29. Kh1 {[%clk 0:00:02.3]} 29...
Ne3 {[%clk 0:00:11.2]} 30. Nxe3 {[%clk 0:00:02.8]} 30... Qxe3 {[%clk 0:00:11.4]}
31. Bd5 {[%clk 0:00:03.5]} 31... Re7 {[%clk 0:00:10]} 32. Rd3 {[%clk 0:00:03.5]}
32... Qxe2 {[%clk 0:00:09.6]} 33. Rdf3 {[%clk 0:00:04.2]} 33... Rcc7 {[%clk
0:00:09]} 34. Bc4 {[%clk 0:00:04.5]} 34... Qe5 {[%clk 0:00:08.1]} 35. Rf6 {[%clk
0:00:04]} 35... Kg7 {[%clk 0:00:08.2]} 36. Ra6 {[%clk 0:00:03.9]} 36... Qxg3
{[%clk 0:00:07.7]} 37. Rg1 {[%clk 0:00:03.5]} 37... Qh3# {[%clk 0:00:07.9]} 0-1

[Event "Late-Titled-Tuesday-Blitz-July-09-2024"]
[Site "Chess.com"]
[Date "2024.07.09"]
[Round "2"]
[White "Adrian-thorsen"]
[Black "almaguerjm"]
[Result "0-1"]
[WhiteElo "2310"]
[BlackElo "2516"]
[TimeControl "180+1"]
[EndTime "14:18:14 PDT"]
[Termination "almaguerjm won on time"]

1. g4 {[%clk 0:03:00.9]} 1... d5 {[%clk 0:02:50.1]} 2. h3 {[%clk 0:02:56.3]}
2... h6 {[%clk 0:02:34.2]} 3. Bg2 {[%clk 0:02:46.6]} 3... Nf6 {[%clk 0:02:33.9]}
4. c4 {[%clk 0:02:42.9]} 4... c6 {[%clk 0:02:31.7]} 5. Qb3 {[%clk 0:02:37.3]}
5... Na6 {[%clk 0:02:29.5]} 6. cxd5 {[%clk 0:02:33.3]} 6... Nxd5 {[%clk
0:02:29.7]} 7. Nc3 {[%clk 0:02:30.6]} 7... e6 {[%clk 0:02:29.5]} 8. a3 {[%clk
0:02:26.7]} 8... Be7 {[%clk 0:02:23.4]} 9. Nf3 {[%clk 0:02:24.8]} 9... Nf4
{[%clk 0:02:21.8]} 10. O-O {[%clk 0:02:22.2]} 10... Nc5 {[%clk 0:02:16.8]} 11.
Qc2 {[%clk 0:02:19.4]} 11... Nxg2 {[%clk 0:02:05.1]} 12. Kxg2 {[%clk 0:02:18.3]}
12... h5 {[%clk 0:02:05.4]} 13. b4 {[%clk 0:02:09.4]} 13... Nd7 {[%clk
0:01:55.9]} 14. Bb2 {[%clk 0:02:07]} 14... hxg4 {[%clk 0:01:45.6]} 15. hxg4
{[%clk 0:02:04.6]} 15... Nf6 {[%clk 0:01:45.9]} 16. g5 {[%clk 0:01:54.9]} 16...
Nd5 {[%clk 0:01:41.5]} 17. g6 {[%clk 0:01:54.3]} 17... Nf4+ {[%clk 0:01:40.4]}
18. Kg3 {[%clk 0:01:51.2]} 18... Nxg6 {[%clk 0:01:37.3]} 19. Rh1 {[%clk
0:01:48.8]} 19... Qc7+ {[%clk 0:01:33.9]} 20. Kg2 {[%clk 0:01:44]} 20... Nf4+
{[%clk 0:01:29.8]} 21. Kg1 {[%clk 0:01:43.5]} 21... Rxh1+ {[%clk 0:01:28.4]} 22.
Kxh1 {[%clk 0:01:44.4]} 22... Bd7 {[%clk 0:01:19.2]} 23. Rg1 {[%clk 0:01:41.7]}
23... O-O-O {[%clk 0:01:17.2]} 24. Rxg7 {[%clk 0:01:40.4]} 24... Rh8+ {[%clk
0:01:16.9]} 25. Kg1 {[%clk 0:01:39.7]} 25... Qd8 {[%clk 0:01:07]} 26. e3 {[%clk
0:01:26.7]} 26... Rh3 {[%clk 0:00:47.7]} 27. exf4 {[%clk 0:01:12.9]} 27... Qh8
{[%clk 0:00:47.3]} 28. Rg3 {[%clk 0:00:55.8]} 28... Rh1+ {[%clk 0:00:28.4]} 29.
Kg2 {[%clk 0:00:53.9]} 29... e5 {[%clk 0:00:28.9]} 30. Nxe5 {[%clk 0:00:39.5]}
30... Bh3+ {[%clk 0:00:28.6]} 31. Kf3 {[%clk 0:00:38.9]} 31... Qh5+ {[%clk
0:00:26]} 32. Ke3 {[%clk 0:00:33.8]} 32... f6 {[%clk 0:00:21.3]} 33. Nc4 {[%clk
0:00:11]} 33... Re1+ {[%clk 0:00:20.3]} 34. Kd4 {[%clk 0:00:10.3]} 34... c5+
{[%clk 0:00:19.8]} 35. bxc5 {[%clk 0:00:09.1]} 35... Qxc5+ {[%clk 0:00:20.7]}
36. Kd3 {[%clk 0:00:08.6]} 36... Bf5+ {[%clk 0:00:21]} 37. Ne4 {[%clk
0:00:08.5]} 37... Bxe4+ {[%clk 0:00:21.4]} 38. Kc3 {[%clk 0:00:07.4]} 38... Bxc2
{[%clk 0:00:20.2]} 39. Rg8+ {[%clk 0:00:01.9]} 39... Kd7 {[%clk 0:00:19.5]} 40.
Rg7 {[%clk 0:00:01]} 40... Bf5 {[%clk 0:00:16.8]} 41. Rxe7+ {[%clk 0:00:01.9]}
41... Qxe7 {[%clk 0:00:16.3]} 42. a4 {[%clk 0:00:01.3]} 42... Rb1 {[%clk
0:00:14.2]} 0-1

[Event "Late-Titled-Tuesday-Blitz-July-09-2024"]
[Site "Chess.com"]
[Date "2024.07.09"]
[Round "2"]
[White "boguszp"]
[Black "sammartin99"]
[Result "0-1"]
[WhiteElo "1960"]
[BlackElo "2427"]
[TimeControl "180+1"]
[EndTime "14:18:16 PDT"]
[Termination "sammartin99 won on time"]

1. d4 {[%clk 0:02:56.7]} 1... Nf6 {[%clk 0:02:58.3]} 2. Nf3 {[%clk 0:02:56.2]}
2... g6 {[%clk 0:02:56.6]} 3. Bf4 {[%clk 0:02:56.6]} 3... Bg7 {[%clk 0:02:53.6]}
4. e3 {[%clk 0:02:56.2]} 4... d5 {[%clk 0:02:51.5]} 5. Be2 {[%clk 0:02:55.1]}
5... O-O {[%clk 0:02:51.1]} 6. O-O {[%clk 0:02:55.5]} 6... c5 {[%clk 0:02:49.4]}
7. c3 {[%clk 0:02:54.3]} 7... Nc6 {[%clk 0:02:48.5]} 8. Nbd2 {[%clk 0:02:53.5]}
8... Nd7 {[%clk 0:02:47.6]} 9. h3 {[%clk 0:02:45.8]} 9... e5 {[%clk 0:02:47.2]}
10. dxe5 {[%clk 0:02:44.9]} 10... Ndxe5 {[%clk 0:02:48.1]} 11. Nxe5 {[%clk
0:02:40.7]} 11... Nxe5 {[%clk 0:02:49]} 12. Nf3 {[%clk 0:02:39.1]} 12... Nc6
{[%clk 0:02:44.7]} 13. Qb3 {[%clk 0:02:29.9]} 13... Qb6 {[%clk 0:02:16.9]} 14.
Rfd1 {[%clk 0:02:21.5]} 14... Be6 {[%clk 0:01:46.8]} 15. Bd6 {[%clk 0:02:03.6]}
15... Rfd8 {[%clk 0:01:43.9]} 16. Qxb6 {[%clk 0:02:03.1]} 16... axb6 {[%clk
0:01:44.1]} 17. Bc7 {[%clk 0:02:03.8]} 17... Rdc8 {[%clk 0:01:38.2]} 18. Bxb6
{[%clk 0:02:03.8]} 18... Ne7 {[%clk 0:01:30.8]} 19. a4 {[%clk 0:01:33.7]} 19...
h6 {[%clk 0:01:25.1]} 20. Bb5 {[%clk 0:01:24.6]} 20... Nf5 {[%clk 0:01:19.4]}
21. a5 {[%clk 0:01:18]} 21... Nd6 {[%clk 0:01:18.2]} 22. Be2 {[%clk 0:01:03]}
22... Nc4 {[%clk 0:00:49.4]} 23. Bxc4 {[%clk 0:01:01.3]} 23... dxc4 {[%clk
0:00:50.3]} 24. Rd2 {[%clk 0:00:55.2]} 24... Bf5 {[%clk 0:00:38.7]} 25. Rad1
{[%clk 0:00:52.7]} 25... Bf6 {[%clk 0:00:37.7]} 26. g4 {[%clk 0:00:42.6]} 26...
Be4 {[%clk 0:00:35.6]} 27. Ne1 {[%clk 0:00:41.5]} 27... Kg7 {[%clk 0:00:34.1]}
28. f3 {[%clk 0:00:40.7]} 28... Bc6 {[%clk 0:00:30.8]} 29. Rd6 {[%clk
0:00:33.5]} 29... Ba4 {[%clk 0:00:29.1]} 30. R1d2 {[%clk 0:00:30.7]} 30... Be7
{[%clk 0:00:24.5]} 31. R6d5 {[%clk 0:00:28.1]} 31... Bc6 {[%clk 0:00:20.4]} 32.
Bxc5 {[%clk 0:00:14.3]} 32... Bxd5 {[%clk 0:00:19.4]} 33. Bxe7 {[%clk
0:00:14.1]} 33... Rxa5 {[%clk 0:00:19.4]} 34. e4 {[%clk 0:00:07.4]} 34... Be6
{[%clk 0:00:19.3]} 35. f4 {[%clk 0:00:05.1]} 35... Ra1 {[%clk 0:00:19.3]} 36.
Kf2 {[%clk 0:00:03.4]} 36... Rc7 {[%clk 0:00:16.6]} 37. Bd6 {[%clk 0:00:02]}
37... Rd7 {[%clk 0:00:17]} 38. Be5+ {[%clk 0:00:02.1]} 38... f6 {[%clk 0:00:15]}
0-1